fUST/lending_fUST_20240306
["ID","MTS","AMOUNT","RATE_DAILY","PERIOD"]
[317157548,1709700633095,-187.67,0.00023097,3]
[317157549,1709700633103,-563.02,0.00023097,3]
[317157550,1709700633113,-153.0,0.000231,2]
[317157551,1709700633122,-153.0,0.000231,2]
[317157552,1709700633132,-153.0,0.000231,2]
[317157553,1709700633142,-153.0,0.000231,2]
[317157554,1709700633151,-153.0,0.000231,2]
[317157555,1709700633161,-153.0,0.000231,2]
[317157556,1709700633171,-153.0,0.000231,2]
[317157557,1709700633180,-153.0,0.000231,2]
[317157558,1709700633189,-500.0,0.00023106,2]
[317157559,1709700633198,-500.0,0.00023106,2]
[317157560,1709700633207,-500.0,0.00023106,2]
[317157561,1709700633217,-500.0,0.00023106,2]
[317157562,1709700633226,-500.0,0.00023106,2]
[317157563,1709700633235,-500.0,0.00023106,2]
[317157564,1709700633244,-503.0802876,0.00023106,2]
[317157565,1709700633254,-500.0,0.00023106,2]
[317157566,1709700633265,-503.10566694,0.00023106,2]
[317157567,1709700633276,-500.0,0.00023106,2]
[317157568,1709700633285,-392.93979098,0.00023106,2]
[317157569,1709700633294,-500.0,0.00023106,2]
[317157570,1709700633304,-500.0,0.00023106,2]
[317157571,1709700633313,-650.0,0.00023106,2]
[317157572,1709700633323,-500.0,0.00023106,2]
[317157573,1709700633332,-500.0,0.00023106,2]
[317157574,1709700633341,-500.0,0.00023106,2]
[317157575,1709700633351,-500.0,0.00023106,2]
[317157576,1709700633360,-500.0,0.00023106,2]
[317157577,1709700633369,-500.0,0.00023106,2]
[317157578,1709700633378,-500.0,0.00023106,2]
[317157579,1709700633387,-500.0,0.00023106,2]
[317157580,1709700633396,-500.0,0.00023106,2]
[317157581,1709700633405,-5000.0,0.00023106,2]
[317157582,1709700633414,-1035.00043466,0.00023106,2]
[317157583,1709700633423,-500.0,0.00023106,2]
[317157584,1709700633432,-5000.0,0.00023106,2]
[317157585,1709700633442,-500.0,0.00023106,2]
[317157586,1709700633451,-636.35600299,0.00023106,2]
[317157587,1709700633460,-26702.81174724,0.00023107,2]
[317157643,1709700638114,-48.66256356,0.00021328,2]
[317161940,1709701642207,-573.25857085,0.00019999,2]
[317161941,1709701642228,-956.32847828,0.0002,2]
[317161942,1709701642247,-645.84395411,0.0002,2]
[317161943,1709701642268,-1462.6456496,0.00021,2]
[317162025,1709701833827,437.23668974,0.000189,2]
[317162028,1709701833840,-155.0,0.00020995,2]
[317162029,1709701833850,-1636.09220488,0.00020995,2]
[317162031,1709701833860,-645.84395411,0.00020996,2]
[317162033,1709701833869,-6989.80179356,0.00021,2]
[317162035,1709701833882,-11289.94768964,0.00021,2]
[317162176,1709701838574,-573.25857085,0.00020994,2]
[317162178,1709701838584,-10274.60604665,0.00021,2]
[317162180,1709701838593,-49.08989747,0.00021,2]
[317162698,1709701843428,-7471.28165028,0.00021,2]
[317162700,1709701843437,-177.013986,0.00022009,2]
[317162702,1709701843447,-155.97791321,0.00022287,2]
[317162704,1709701843456,-155.60343505,0.00022819,2]
[317162706,1709701843465,-651.48272675,0.00022848,2]
[317162708,1709701843474,-8347.13699458,0.00023,2]
[317162711,1709701843484,-153.0,0.00023,2]
[317162713,1709701843493,-153.0,0.00023,2]
[317162715,1709701843502,-200.885322,0.00023,2]
[317162717,1709701843513,-153.2111663,0.00023,2]
[317162719,1709701843522,-153.0,0.00023,2]
[317162720,1709701843531,-153.0,0.00023,2]
[317162722,1709701843540,-153.2130086,0.00023,2]
[317162725,1709701843550,-153.0,0.00023,2]
[317162727,1709701843559,-153.0,0.00023,2]
[317162729,1709701843569,-200.885322,0.00023,2]
[317162731,1709701843578,-153.0,0.00023,2]
[317162733,1709701843587,-153.0,0.00023,2]
[317162735,1709701843596,-153.0,0.00023,2]
[317162736,1709701843605,-153.0,0.00023,2]
[317162738,1709701843620,-200.885322,0.00023,2]
[317162741,1709701843630,-153.0,0.00023,2]
[317162742,1709701843640,-153.0,0.00023,2]
[317162744,1709701843650,-153.0,0.00023,2]
[317162746,1709701843661,-200.885322,0.00023,2]
[317162748,1709701843671,-200.885322,0.00023,2]
[317162750,1709701843681,-153.0,0.00023,2]
[317162752,1709701843693,-153.0,0.00023,2]
[317162754,1709701843704,-153.0,0.00023,2]
[317162756,1709701843714,-153.0,0.00023,2]
[317162758,1709701843724,-153.0,0.00023,2]
[317162760,1709701843735,-200.885322,0.00023,2]
[317162762,1709701843746,-200.885322,0.00023,2]
[317162764,1709701843760,-153.0,0.00023,2]
[317162766,1709701843771,-153.0,0.00023,2]
[317162768,1709701843782,-153.0,0.00023,2]
[317162770,1709701843793,-153.0,0.00023,2]
[317162772,1709701843804,-153.0,0.00023,2]
[317162774,1709701843814,-200.885322,0.00023,2]
[317162776,1709701843825,-153.0,0.00023,2]
[317162778,1709701843835,-153.0,0.00023,2]
[317162780,1709701843845,-200.885322,0.00023,2]
[317162782,1709701843855,-200.4726724,0.00023,2]
[317162784,1709701843866,-153.0,0.00023,2]
[317162786,1709701843875,-153.0,0.00023,2]
[317162788,1709701843886,-306.0,0.00023,2]
[317162790,1709701843895,-154.7105985,0.00023,2]
[317162792,1709701843904,-154.2508101,0.00023,2]
[317162794,1709701843914,-408.53147694,0.00023007,2]
[317162796,1709701843923,-692.87,0.0002309,3]
[317162798,1709701843933,-187.66,0.0002309,3]
[317162800,1709701843942,-209.31,0.0002309,3]
[317162802,1709701843951,-627.94,0.0002309,3]
[317162804,1709701843961,-38464.23180169,0.000231,2]
[317162807,1709701843981,-8789.35067324,0.000231,2]
[317162809,1709701843992,-492.20946721,0.00023104,2]
[317162811,1709701844002,-500.0,0.00023104,2]
[317162813,1709701844012,-500.0,0.00023104,2]
[317162815,1709701844022,-489.71297004,0.00023104,2]
[317162817,1709701844032,-500.0,0.00023104,2]
[317162819,1709701844041,-500.0,0.00023104,2]
[317162821,1709701844051,-500.0,0.00023104,2]
[317162823,1709701844062,-565.0,0.00023104,2]
[317162825,1709701844071,-87.52688952,0.00023104,2]
[317164902,1709702790391,24900.0,0.00018991,2]
[317164904,1709702839113,-154.93802479,0.00019168,2]
[317164905,1709702839133,-315.56511995,0.00019169,2]
[317164906,1709702839153,-294.64006495,0.0001917,2]
[317164907,1709702839173,-1636.09220488,0.00019171,2]
[317164908,1709702839192,-449.6001402,0.00019172,2]
[317164909,1709702845049,166.704081,0.00018986,2]
[317164911,1709702854236,569.11131531,0.00018975,2]
[317164912,1709702932700,-573.25857085,0.00019177,2]
[317164913,1709702932731,-166.704081,0.00019178,2]
[317164914,1709702932762,-177.013986,0.00019282,2]
[317164915,1709702932782,-573.25857085,0.00019778,2]
[317164916,1709702932793,-166.704081,0.00019778,2]
[317164917,1709702932805,-177.013986,0.00019778,2]
[317164918,1709702932817,-3493.0467243,0.00019778,2]
[317164926,1709702950109,-3510.42879365,0.00019778,2]
[317164927,1709702950131,-166.704081,0.00019779,2]
[317164928,1709702950151,-170.3347904,0.00019968,2]
[317164929,1709702950171,-645.84395411,0.0002,2]
[317164930,1709702950190,-2856.68838084,0.00020077,2]
[317164933,1709702974294,-143.31161916,0.00020077,2]
[317164934,1709702974315,-65.66356024,0.0002038,2]
[317164960,1709703034155,-101.04052076,0.0002038,2]
[317164961,1709703034165,-154.95351395,0.0002038,2]
[317164962,1709703034174,-645.84395411,0.0002098,2]
[317164963,1709703034184,-166.704081,0.00020981,2]
[317164964,1709703034194,-1046.46811572,0.00021,2]
[317164965,1709703034203,-294.64006495,0.00021578,2]
[317164967,1709703034212,-166.704081,0.00021581,2]
[317164969,1709703034221,-573.25857085,0.00021896,2]
[317164970,1709703034230,-162.218824,0.00021897,2]
[317164972,1709703034239,-793.94,0.00022163,3]
[317164974,1709703034248,-3366.27420509,0.00022173,2]
[317164977,1709703034260,-21515.25025452,0.00022173,2]
[317164987,1709703034315,-1526.37400797,0.00022173,2]
[317165892,1709703044113,-724.6417285,0.00020073,2]
[317165895,1709703044126,-2141.84997387,0.00022173,2]
[317165898,1709703044143,-1843.52737132,0.00022173,2]
[317165910,1709703044257,-12717.62246037,0.00022173,2]
[317165958,1709703044710,-503.01188397,0.00022173,2]
[317165960,1709703044723,-6386.08984289,0.00022173,2]
[317165962,1709703044734,-13182.01015711,0.00022173,2]
[317166247,1709703048094,-36817.98984289,0.00022173,2]
[317166249,1709703048106,-663.34146161,0.00023007,2]
[317166251,1709703048116,-12500.0,0.00023025,2]
[317166252,1709703048127,-12499.99,0.00023041,2]
[317166254,1709703048137,-663.34146157,0.00023052,2]
[317166256,1709703048149,-500.0,0.00023061,2]
[317166258,1709703048160,-500.0,0.00023061,2]
[317166259,1709703048171,-500.0,0.00023061,2]
[317166261,1709703048182,-500.0,0.00023061,2]
[317166263,1709703048192,-500.0,0.00023061,2]
[317166264,1709703048203,-500.0,0.00023061,2]
[317166266,1709703048214,-500.0,0.00023061,2]
[317166268,1709703048225,-500.0,0.00023061,2]
[317166269,1709703048236,-330.92804978,0.00023061,2]
[317166271,1709703048247,-500.0,0.00023061,2]
[317166273,1709703048259,-500.0,0.00023061,2]
[317166274,1709703048270,-8920.17,0.00023062,2]
[317166276,1709703048281,-2815.41558857,0.00023068,3]
[317166278,1709703048292,-381.78381745,0.00023068,3]
[317166279,1709703048305,-167.05539457,0.00023068,2]
[317166281,1709703048316,-2696.60265398,0.00023068,3]
[317166283,1709703048328,-663.34146157,0.00023097,2]
[317166284,1709703048338,-445.76689212,0.00023102,2]
[317166285,1709703048349,-12062.42796567,0.00023103,2]
[317166286,1709703048474,-1204.2460078,0.00023103,2]
[317177071,1709704028119,-226.84497747,0.00019731,2]
[317177072,1709704038095,-315.56511995,0.0001973,2]
[317177073,1709704038115,-346.41359338,0.00019731,2]
[317177074,1709704038135,-154.90705577,0.00019732,2]
[317177075,1709704038156,-154.90705577,0.00019733,2]
[317177076,1709704038177,-294.64006495,0.00019734,2]
[317177077,1709704038197,-614.63151248,0.00019743,2]
[317177083,1709704172107,-176.34932727,0.0001925,2]
[317177084,1709704172128,-276.73315703,0.00019251,2]
[317177085,1709704172148,-24285.36848752,0.00019743,2]
[317177086,1709704172174,-154.90705577,0.00019743,2]
[317177087,1709704172193,-400.5979483,0.00019805,2]
[317177088,1709704172216,-208.786705,0.00019827,2]
[317177089,1709704172236,-822.29827,0.00019861,2]
[317177090,1709704172261,-250.0,0.00019903,2]
[317177091,1709704172281,-336.48470009,0.0002,2]
[317177092,1709704172304,-41.49434902,0.00020958,2]
[317177460,1709704237900,-155.28529435,0.00019743,2]
[317177462,1709704237910,-154.90705577,0.00020957,2]
[317177465,1709704237921,-154.90705577,0.00020957,2]
[317177468,1709704237930,-181.91465098,0.00020958,2]
[317177470,1709704237939,-483.09448567,0.00021002,2]
[317177472,1709704237948,-336.48470009,0.00022121,2]
[317177474,1709704237958,-573.25857085,0.00022161,2]
[317177476,1709704237966,-409.44575376,0.00022167,2]
[317177544,1709704238596,-295.34192375,0.00022167,2]
[317177546,1709704238608,-7351.30985605,0.00022167,2]
[317177553,1709704238666,-150.0,0.00022167,2]
[317177555,1709704238679,-3143.39643187,0.00022167,2]
[317177558,1709704238701,-38650.50603457,0.00022167,2]
[317177559,1709704238710,-151.48485454,0.00022528,2]
[317177560,1709704238719,-290.14038118,0.00023,7]
[317177561,1709704238729,-12385.62509974,0.00023007,2]
[317177562,1709704238738,-668.66120229,0.00023071,3]
[317177563,1709704238747,-174.20383954,0.00023073,3]
[317177564,1709704238756,-416.98,0.00023079,3]
[317177565,1709704238765,-208.49,0.00023079,3]
[317177567,1709704238774,-625.47,0.00023079,3]
[317177569,1709704238783,-5633.34028766,0.00023086,2]
[317177572,1709704238793,-1943.77496074,0.00023088,2]
[317177573,1709704238805,-5000.0,0.00023089,2]
[317177576,1709704238815,-32252.73151866,0.00023089,2]
[317177578,1709704238824,-5000.0,0.00023092,2]
[317177579,1709704238834,-6238.14245334,0.00023092,2]
[317177582,1709704238843,-581.0,0.000231,2]
[317177584,1709704238853,-500.0,0.00023102,2]
[317177585,1709704238862,-500.0,0.00023102,2]
[317177587,1709704238871,-500.0,0.00023102,2]
[317177590,1709704238880,-500.0,0.00023102,2]
[317177592,1709704238889,-500.0,0.00023102,2]
[317177594,1709704238898,-500.0,0.00023102,2]
[317177596,1709704238907,-500.0,0.00023102,2]
[317177598,1709704238916,-500.0,0.00023102,2]
[317177600,1709704238925,-500.0,0.00023102,2]
[317177602,1709704238934,-500.0,0.00023102,2]
[317177604,1709704238943,-500.0,0.00023102,2]
[317177606,1709704238952,-500.0,0.00023102,2]
[317177608,1709704238961,-500.0,0.00023102,2]
[317177609,1709704238970,-500.0,0.00023102,2]
[317177611,1709704238979,-500.0,0.00023102,2]
[317177613,1709704238988,-500.0,0.00023102,2]
[317177615,1709704238998,-533.09280498,0.00023102,2]
[317177617,1709704239007,-500.0,0.00023102,2]
[317177619,1709704239016,-500.0,0.00023102,2]
[317177621,1709704239025,-10305.89526032,0.00023103,2]
[317177623,1709704239035,-5000.0,0.00023103,2]
[317177625,1709704239045,-5000.0,0.00023103,2]
[317177627,1709704239057,-175.54684669,0.00023103,2]
[317177630,1709704239070,-502.06222346,0.00023103,2]
[317177632,1709704239079,-1686.873428,0.00023103,2]
[317177634,1709704239088,-1686.873428,0.00023103,2]
[317177635,1709704239098,-136.37546503,0.00023103,2]
[317178103,1709704243700,-14.62453497,0.00023103,2]
[317178105,1709704243709,-165.020468,0.00023103,2]
[317178107,1709704243719,-165.020468,0.00023103,2]
[317178109,1709704243729,-165.020468,0.00023103,2]
[317178111,1709704243738,-165.020468,0.00023103,2]
[317178113,1709704243748,-385.986545,0.00023103,2]
[317178115,1709704243757,-385.986545,0.00023103,2]
[317178117,1709704243767,-385.986545,0.00023103,2]
[317178119,1709704243776,-385.986545,0.00023103,2]
[317178121,1709704243785,-151.0,0.00023103,2]
[317178123,1709704243795,-157.511348,0.00023103,2]
[317178125,1709704243807,-157.511348,0.00023103,2]
[317178127,1709704243815,-155.28851956,0.00023104,2]
[317178129,1709704243826,-3510.03619747,0.00023105,2]
[317178194,1709704244490,-322.06299045,0.00021003,2]
[317178196,1709704244500,-7151.63180303,0.00023105,2]
[317188378,1709704454462,6130.8946228,0.000125,2]
[317188381,1709704469060,270.84064025,0.0001,2]
[317188446,1709705148473,214.7086603,0.000189,2]
[317188450,1709705233110,-573.25857085,0.00019496,2]
[317188451,1709705233131,-154.95351395,0.00019497,2]
[317188452,1709705233152,-2909.86456804,0.000195,2]
[317188509,1709705354107,-155.17521676,0.000195,2]
[317188510,1709705361183,-53.61148824,0.000195,2]
[317188511,1709705361208,-265.7872526,0.00019732,2]
[317188512,1709705361229,-540.77764712,0.00019998,2]
[317188513,1709705361250,-24576.63977411,0.0002,2]
[317188514,1709705361271,-336.48470009,0.0002,2]
[317188515,1709705361291,-2206.21199934,0.0002,2]
[317188516,1709705361312,-17849.2517115,0.00020751,2]
[317188574,1709705432982,-8907.05386206,0.00021,2]
[317188650,1709705443062,-809.96960681,0.00021,2]
[317189283,1709705449623,264.72059532,0.000189,2]
[317189287,1709705449645,76.78152235,0.000189,2]
[317196238,1709705750932,227.66807845,0.000189,2]
[317196246,1709706052274,151.77871896,0.000189,2]
[317196266,1709706353750,159.08590797,0.000189,2]
[317196300,1709706551189,-154.98450155,0.00019549,2]
[317196301,1709706560198,-59.12273205,0.00019549,2]
[317196302,1709706560220,-336.48470009,0.0002,2]
[317196303,1709706560241,-300.0,0.00020048,2]
[317196304,1709706560262,-15247.63303065,0.00020049,2]
[317196305,1709706560282,-20077.98755213,0.0002005,2]
[317196306,1709706562162,-269.38827217,0.0002005,2]
[317196307,1709706566153,-4552.6241757,0.0002005,2]
[317196308,1709706566408,265.1317089,0.00019849,2]
[317196338,1709706633948,-3108.96864719,0.00019849,2]
[317196340,1709706633957,-180.19153416,0.0002005,2]
[317196343,1709706633970,-321.8706893,0.0002005,2]
[317196344,1709706633979,-336.48470009,0.00020999,2]
[317196347,1709706633988,-11954.33894596,0.00021,2]
[317196349,1709706633998,-1667.69881424,0.0002212,2]
[317196351,1709706634007,-875.11625792,0.00022355,2]
[317196352,1709706634017,-308.6140268,0.00022356,2]
[317196354,1709706634028,-200.8478084,0.00022356,2]
[317196356,1709706634037,-200.8478084,0.000224,2]
[317196357,1709706634046,-176.0112484,0.00022557,2]
[317196358,1709706634055,-2984.75416054,0.00022657,4]
[317196360,1709706634064,-2984.75416054,0.00022657,4]
[317196362,1709706634073,-2984.75416054,0.00022657,4]
[317196363,1709706634082,-2984.75416054,0.00022657,4]
[317196365,1709706634091,-2984.75416054,0.00022657,4]
[317196367,1709706634102,-2984.75416054,0.00022657,4]
[317196369,1709706634111,-2984.75416054,0.00022657,4]
[317196371,1709706634120,-1267.6765063,0.00022657,4]
[317196373,1709706634132,-542.48910822,0.00022657,4]
[317196375,1709706634143,-1174.58854602,0.00022657,4]
[317196378,1709706634152,-2984.75416054,0.00022657,4]
[317196380,1709706634162,-2984.75316054,0.00022657,4]
[317196381,1709706634171,-170.36932604,0.00022873,2]
[317196383,1709706634180,-153.0,0.00022904,2]
[317196385,1709706634189,-622.80399488,0.00022961,2]
[317196387,1709706634199,-1995.67736562,0.00023,2]
[317196389,1709706634209,-8241.44159152,0.00023,2]
[317196391,1709706634218,-331.97059204,0.00023007,2]
[317196392,1709706634229,-4354.98115279,0.00023007,2]
[317196394,1709706634238,-331.97059201,0.00023052,2]
[317196396,1709706634248,-358.76,0.00023067,3]
[317196398,1709706634257,-179.38,0.00023067,3]
[317196400,1709706634265,-538.16,0.00023067,3]
[317196402,1709706634275,-19500.66901859,0.00023076,2]
[317196404,1709706634284,-278.735802,0.00023077,2]
[317196406,1709706634293,-426.38295368,0.00023077,2]
[317196408,1709706634302,-500.0,0.00023077,2]
[317196409,1709706634311,-161.47697406,0.00023077,2]
[317196410,1709706634320,-500.0,0.00023077,2]
[317196411,1709706634329,-500.0,0.00023077,2]
[317196413,1709706634338,-500.0,0.00023077,2]
[317196415,1709706634349,-500.0,0.00023077,2]
[317196417,1709706634358,-472.18967558,0.00023077,2]
[317196419,1709706634367,-500.0,0.00023077,2]
[317196421,1709706634375,-500.0,0.00023077,2]
[317196423,1709706634384,-500.0,0.00023077,2]
[317196425,1709706634393,-500.0,0.00023077,2]
[317196427,1709706634402,-500.0,0.00023077,2]
[317196429,1709706634411,-500.0,0.00023077,2]
[317196430,1709706634420,-500.0,0.00023077,2]
[317196432,1709706634429,-447.14338732,0.00023077,2]
[317196435,1709706634439,-500.0,0.00023077,2]
[317196436,1709706634448,-500.0,0.00023077,2]
[317196438,1709706634457,-500.0,0.00023077,2]
[317196440,1709706634466,-500.0,0.00023077,2]
[317196442,1709706634481,-500.0,0.00023077,2]
[317196444,1709706634490,-500.0,0.00023077,2]
[317196446,1709706634500,-500.0,0.00023077,2]
[317196448,1709706634509,-500.0,0.00023077,2]
[317196450,1709706634518,-500.0,0.00023077,2]
[317196452,1709706634526,-500.0,0.00023077,2]
[317196454,1709706634535,-500.0,0.00023077,2]
[317196456,1709706634545,-500.0,0.00023077,2]
[317196458,1709706634554,-500.0,0.00023077,2]
[317196460,1709706634563,-500.0,0.00023077,2]
[317196462,1709706634572,-500.0,0.00023077,2]
[317196464,1709706634582,-500.0,0.00023077,2]
[317196466,1709706634590,-500.0,0.00023077,2]
[317196468,1709706634600,-500.0,0.00023077,2]
[317196470,1709706634609,-500.0,0.00023077,2]
[317196472,1709706634619,-500.0,0.00023077,2]
[317196474,1709706634628,-500.0,0.00023077,2]
[317196477,1709706634638,-500.0,0.00023077,2]
[317196478,1709706634648,-500.0,0.00023077,2]
[317196481,1709706634658,-500.0,0.00023077,2]
[317196483,1709706634667,-500.0,0.00023077,2]
[317196484,1709706634677,-500.0,0.00023077,2]
[317196487,1709706634687,-500.0,0.00023077,2]
[317196489,1709706634696,-500.0,0.00023077,2]
[317196491,1709706634706,-500.0,0.00023077,2]
[317196493,1709706634715,-500.0,0.00023077,2]
[317196495,1709706634727,-500.0,0.00023077,2]
[317196496,1709706634736,-500.0,0.00023077,2]
[317196499,1709706634745,-500.0,0.00023077,2]
[317196500,1709706634755,-500.0,0.00023077,2]
[317196502,1709706634765,-500.0,0.00023077,2]
[317196504,1709706634774,-500.0,0.00023077,2]
[317196506,1709706634784,-500.0,0.00023077,2]
[317196509,1709706634794,-500.0,0.00023077,2]
[317196511,1709706634804,-500.0,0.00023077,2]
[317196512,1709706634813,-500.0,0.00023077,2]
[317196514,1709706634823,-500.0,0.00023077,2]
[317196517,1709706634833,-500.0,0.00023077,2]
[317196518,1709706634842,-500.0,0.00023077,2]
[317196520,1709706634851,-500.0,0.00023077,2]
[317196522,1709706634861,-500.0,0.00023077,2]
[317196524,1709706634870,-500.0,0.00023077,2]
[317196526,1709706634879,-500.0,0.00023077,2]
[317196529,1709706634889,-500.0,0.00023077,2]
[317196530,1709706634898,-500.0,0.00023077,2]
[317196541,1709706634908,-500.0,0.00023077,2]
[317196543,1709706635000,-500.0,0.00023077,2]
[317196545,1709706635010,-500.0,0.00023077,2]
[317196547,1709706635023,-500.0,0.00023077,2]
[317196549,1709706635033,-500.0,0.00023077,2]
[317196551,1709706635043,-500.0,0.00023077,2]
[317196553,1709706635052,-500.0,0.00023077,2]
[317196556,1709706635062,-500.0,0.00023077,2]
[317196557,1709706635071,-500.0,0.00023077,2]
[317196559,1709706635081,-427.57647773,0.00023077,2]
[317196561,1709706635090,-500.0,0.00023077,2]
[317196563,1709706635100,-500.0,0.00023077,2]
[317196566,1709706635111,-500.0,0.00023077,2]
[317196568,1709706635121,-500.0,0.00023077,2]
[317196569,1709706635131,-500.0,0.00023077,2]
[317196571,1709706635140,-500.0,0.00023077,2]
[317196573,1709706635150,-500.0,0.00023077,2]
[317196574,1709706635159,-500.0,0.00023077,2]
[317196576,1709706635169,-500.0,0.00023077,2]
[317196577,1709706635178,-500.0,0.00023077,2]
[317196579,1709706635188,-450.0,0.00023077,2]
[317196581,1709706635198,-151.0,0.00023078,2]
[317196583,1709706635208,-151.513472,0.00023078,2]
[317196585,1709706635218,-221.037223,0.00023078,2]
[317196587,1709706635228,-1686.873428,0.00023079,2]
[317196589,1709706635238,-1686.873428,0.00023079,2]
[317196592,1709706635248,-151.0,0.00023079,2]
[317196594,1709706635257,-151.0,0.00023079,2]
[317196596,1709706635267,-301.213386,0.00023079,2]
[317196597,1709706635277,-12567.59345945,0.00023081,2]
[317196600,1709706635287,-16174.86663376,0.00023081,3]
[317196602,1709706635296,-808.74333168,0.00023081,2]
[317196604,1709706635305,-17970.8320149,0.00023081,2]
[317196606,1709706635315,-6650.40685638,0.00023081,2]
[317196608,1709706635325,-286.160771,0.00023081,2]
[317196610,1709706635335,-286.160771,0.00023081,2]
[317196612,1709706635345,-715.69205688,0.00023081,2]
[317196614,1709706635354,-796.34154268,0.00023081,2]
[317196616,1709706635363,-1686.873428,0.00023081,2]
[317196618,1709706635373,-1686.873428,0.00023081,2]
[317196620,1709706635382,-1686.873428,0.00023081,2]
[317196622,1709706635391,-1686.873428,0.00023081,2]
[317196624,1709706635400,-151.0,0.00023081,2]
[317196626,1709706635409,-151.0,0.00023081,2]
[317196628,1709706635418,-151.0,0.00023081,2]
[317196630,1709706635428,-151.0,0.00023081,2]
[317196632,1709706635436,-362.52418336,0.00023081,2]
[317196634,1709706635445,-153.880191,0.00023081,2]
[317196636,1709706635455,-1000.0,0.00023081,7]
[317196638,1709706635464,-8843.00499919,0.00023081,2]
[317196640,1709706635475,-794.65620907,0.00023081,2]
[317196642,1709706635484,-64162.16964984,0.00023082,2]
[317196644,1709706635493,-151.0,0.00023082,2]
[317196646,1709706635502,-151.0,0.00023082,2]
[317196648,1709706635512,-308.789236,0.00023082,2]
[317196650,1709706635520,-308.789236,0.00023082,2]
[317196652,1709706635530,-286.160771,0.00023082,2]
[317196654,1709706635539,-286.160771,0.00023082,2]
[317196656,1709706635548,-1686.873428,0.00023082,2]
[317196657,1709706635557,-1686.873428,0.00023082,2]
[317196659,1709706635567,-151.0,0.00023082,2]
[317196661,1709706635576,-151.0,0.00023082,2]
[317196663,1709706635585,-6175.8194556,0.00023083,2]
[317196665,1709706635595,-5000.0,0.00023083,2]
[317196667,1709706635604,-331.97059201,0.00023097,2]
[317196669,1709706635614,-200.0,0.000231,2]
[317196671,1709706635623,-581.0,0.000231,2]
[317196673,1709706635633,-80031.74099224,0.00023105,2]
[317197042,1709706644154,-500.0,0.00023078,2]
[317197044,1709706644163,-500.0,0.00023078,2]
[317197046,1709706644173,-587.75764777,0.00023078,2]
[317197048,1709706644182,-500.0,0.00023078,2]
[317197050,1709706644192,-500.0,0.00023078,2]
[317197052,1709706644202,-500.0,0.00023078,2]
[317197054,1709706644212,-160.7937097,0.00023078,2]
[317197056,1709706644221,-500.0,0.00023078,2]
[317197067,1709706644320,-500.0,0.00023078,2]
[317197069,1709706644329,-500.0,0.00023078,2]
[317197071,1709706644339,-34571.25694012,0.00023105,2]
[317197089,1709706644497,-632.59647099,0.00023105,2]
[317197098,1709706644568,-71169.53137982,0.00023105,2]
[317197389,1709706647401,-20379.70118419,0.00023105,2]
[317198560,1709706944181,275.2,0.000201,10]
[317198580,1709707560762,150.0,0.000189,2]
[317198585,1709707636355,151.48485454,0.00018806,2]
[317198586,1709707639156,-422.88321142,0.00019993,2]
[317198587,1709707639177,-294.64006495,0.00019993,2]
[317198588,1709707639196,-315.56511995,0.00019994,2]
[317198589,1709707639217,-154.9690062,0.00019994,2]
[317198590,1709707639239,-833.37583352,0.0002,2]
[317198591,1709707645128,-208.9751794,0.0002,2]
[317198596,1709707745179,-176.01124839,0.000199,2]
[317198597,1709707745204,-21139.44809587,0.0002,2]
[317198598,1709707745228,-336.48470009,0.0002,2]
[317198599,1709707745250,-502.06222346,0.0002,2]
[317198600,1709707761522,502.06222346,0.0002,2]